Cogmind - Beta 17 @@@ ROGUE MODE // 2026.07.10 @ 20:31:59 Player: IsAway Result: Self-destructed Performance ------------- Evolutions (2) 1000 Regions Visited (6) 1200 Robots Destroyed (36) 180 Value Destroyed (737) 737 Prototype IDs (3) 60 Alien Tech Used (0) 0 Bonus (92) 92 TOTAL SCORE: 3269 Bonus ------- Follower Combat Kills 92 Cogmind --------- Core Integrity 330/550 Matter 293/300 Energy 100/100 System Corruption 2% Temperature Cool (0) Movement Core (400) Ox7 Location -8/Storage Parts ------- > --- POWER (2) -------- (None) > --- PROPULSION (4) --- (None) > --- UTILITY (3) ------ Large Storage Unit Salvage Targeting Computer Core Analyzer > --- WEAPON (2) ------- Makeshift Spear Makeshift Spear > --- INVENTORY (15) --- Light Nuclear Core Flight Unit Flight Unit Flight Unit Xenon Bombardment Thruster Weight Redist. System Weight Redist. System Experimental Sensor Array Salvage Targeting Computer Actuator Array Makeshift Hacking Suite Advanced Beam Rifle EM Pulse Cannon Mining Laser Peak State ------------ > --- POWER ------------ Light Nuclear Core Light Nuclear Core > --- PROPULSION ------- Wheel Compact Wheel Compact Wheel Compact Wheel > --- UTILITY ---------- Large Storage Unit Weight Redist. System Salvage Targeting Computer > --- WEAPON ----------- Advanced Beam Rifle Makeshift Spear > --- INVENTORY -------- Light Angular Momentum Engine Hover Unit Hover Unit Flight Unit Xenon Bombardment Thruster Weight Redist. System Experimental Sensor Array Salvage Targeting Computer Core Analyzer Actuator Array Makeshift Hacking Suite EM Pulse Cannon Grenade Launcher Mining Laser Makeshift Spear [Rating: 27] Favorites ----------- Power Light Nuclear Core Engine Light Ion Engine Power Core Light Nuclear Core Propulsion Wheel Wheel Wheel Hover Unit Hover Unit Utility Large Storage Unit Device Seismic Detector Storage Large Storage Unit Processor Salvage Targeting Computer Weapon Light EM Pulse Cannon Energy Gun EM Pulse Gun Energy Cannon Light EM Pulse Cannon Ballistic Gun Assault Rifle Launcher Grenade Launcher Special Weapon Mining Laser Piercing Weapon Makeshift Spear Build | -11 -10 -10 -10 -9 -8 -8 ------- Run | Yrd Mat Min Exi Min Mat Sto Slots Evolved 4 | . . . . . 4 . Power 1 | . . . . . 1 . Propulsion 2 | . . . . . 2 . Utility 1 | . . . . . 1 . Weapon . | . . . . . . . Parts Attached 32 | 7 4 1 6 2 9 3 Power 6 | 1 . . 1 1 2 1 Engine 4 | 1 . . 1 . 1 1 Core 2 | . . . . 1 1 . Reactor . | . . . . . . . Propulsion 9 | 2 1 . 3 . 3 . Treads . | . . . . . . . Leg . | . . . . . . . Wheel 7 | 2 1 . 1 . 3 . Hover 2 | . . . 2 . . . Flight . | . . . . . . . Utility 6 | 2 1 . 1 . 1 1 Device 2 | 1 . . . . 1 . Storage 2 | 1 1 . . . . . Processor 2 | . . . 1 . . 1 Hackware . | . . . . . . . Protection . | . . . . . . . Artifact . | . . . . . . . Weapon 11 | 2 2 1 1 1 3 1 Energy Gun 2 | 1 . . . . 1 . Energy Cannon 3 | . 1 . 1 1 . . Ballistic Gun 1 | 1 . . . . . . Ballistic Cannon . | . . . . . . . Launcher 2 | . 1 . . . 1 . Special Weapon 1 | . . 1 . . . . Impact Weapon . | . . . . . . . Slashing Weapon . | . . . . . . . Piercing Weapon 2 | . . . . . 1 1 Special Melee Weapon . | . . . . . . . Unidentified Prototypes 1 | . . . . . 1 . Corrupted Parts 2 | 1 . . . . 1 . System Corruption 5 | 3 . . . . 2 . Parts Lost 11 | . . 1 1 . 1 8 Power 4 | . . 1 . . . 3 Propulsion 5 | . . . . . 1 4 Utility . | . . . . . . . Weapon 2 | . . . 1 . . 1 Highest Loss Streak 4 | . . 1 1 . 1 4 To Critical Strikes . | . . . . . . . Average Backups 13 | 1 12 15 14 15 14 14 Power . | . 1 1 . . . . Propulsion 3 | . 1 3 3 2 3 4 Utility 5 | . 3 5 5 6 5 6 Weapon 5 | . 5 6 5 6 4 3 Tool/Special . | . . . . . . . Unused Backups 21 | . 3 . 2 3 2 11 Power 1 | . . . . . . 1 Propulsion 5 | . . . 1 . . 4 Utility 11 | . 2 . 1 3 . 5 Weapon 4 | . 1 . . . 2 1 Tool/Special . | . . . . . . . Average Slot Usage (%) 91 | . 100 94 98 100 89 61 Engine 7 | . 14 8 12 5 . 1 Core 4 | . . . . 8 16 3 Wheel 25 | . 28 28 28 28 28 13 Device 7 | . 14 14 4 . 8 4 Storage 12 | . 14 14 14 14 9 9 Processor 8 | . . . 9 14 9 13 Energy Gun 2 | . 10 . . . . 2 Energy Cannon 9 | . 3 14 14 23 5 . Launcher 3 | . 13 3 . . 5 1 Special Weapon 5 | . . 10 14 4 . . Piercing Weapon 2 | . . . . . 6 12 Peak Build Rating 27 | 7 10 10 12 16 27 24 Average Rating 13 | 5 8 9 10 13 22 19 On Entrance 11 | . 7 10 9 12 16 24 Avg Prop Armor Cover (%) . | . . . . . . . Naked Turns . | . . . . . . . Heaviest Build 42 | 15 33 33 29 33 42 35 Greatest Support 64 | 26 26 20 20 20 64 64 Greatest Overweight (x) 7 | . 1 1 1 1 2 7 Average Overweight (x) . | . . 1 1 1 . 1 Largest Inventory Capacity 15 | 8 15 15 15 15 15 15 Average Capacity 14 | 7 14 15 15 15 15 15 Most Carried 15 | 4 15 15 15 15 15 15 Average Carried 13 | 2 12 15 14 14 14 14 Final Capacity 15 | 8 15 15 15 15 15 15 Final Carried 15 | 4 15 15 15 15 15 14 Class Distribution -------------------- 100% | Mutant Dominant Class ---------------- Mutant | -10/Materials Mutant | -10/Mines Mutant | -10/Exiles Mutant | -9/Mines Mutant | -8/Materials Mutant | -8/Storage Resources | -11 -10 -10 -10 -9 -8 -8 ----------- Run | Yrd Mat Min Exi Min Mat Sto Matter Collected 949 | 272 4 301 83 63 81 145 Remotely . | . . . . . . . Salvage Created 1530 | 150 143 361 435 . 142 299 Parts 74 | 10 22 14 10 . 10 8 Haulers Intercepted 1 | . 1 . . . . . Recyclers Shooed 2 | . . 2 . . . . Parts Field Recycled . | . . . . . . . Retrieved Matter . | . . . . . . . Parts Self-Destructed . | . . . . . . . Prevented . | . . . . . . . Parts Restored . | . . . . . . . Kills | -11 -10 -10 -10 -9 -8 -8 ------- Run | Yrd Mat Min Exi Min Mat Sto Combat Hostiles Destroyed 21 | . 9 1 . . 6 5 Melee 4 | . . . . . . 4 Guns 2 | . 1 . . . . 1 Cannons 3 | . 1 1 . . 1 . AOE 12 | . 7 . . . 5 . Classes Destroyed 10 | 2 6 1 . . 1 . Worker 1 | . 1 . . . . . Builder 1 | . 1 . . . . . Tunneler 4 | 2 . 2 . . . . Hauler 1 | . 1 . . . . . Recycler 4 | 1 . 3 . . . . Operator 1 | . 1 . . . . . Watcher 3 | . 3 . . . . . Swarmer 12 | . 9 . . . 3 . Grunt 6 | . . 1 . . 2 3 Sentry 3 | . . . . . 1 2 Best Kill Streak 6 | 2 6 6 . . 3 4 Combat Bots Only 4 | . 3 1 . . 3 4 Max Kills in Single Turn 3 | 1 3 1 . . 3 1 Gunslinging . | . . . . . . . Exploded 3 | . 2 . . . 3 . Melee 1 | . . . . . . 1 Uniques/NPCs Destroyed . | . . . . . . . Combat | -11 -10 -10 -10 -9 -8 -8 -------- Run | Yrd Mat Min Exi Min Mat Sto Hostile Shots Fired 88 | . 13 9 . 2 27 37 Missed 26 | . 5 2 . 1 11 7 Hits 62 | . 8 7 . 1 16 30 Projectile 62 | . 8 7 . 1 16 30 Critical Strikes 4 | . . 1 . . 1 2 Damage Taken 1136 | . 155 92 58 29 294 508 Core 320 | . 53 11 17 19 46 174 Absorbed by Shields . | . . . . . . . Core Remaining (%) 80 | 100 . . . 60 . . Volleys Fired 107 | 4 17 21 41 2 19 3 Largest 2 | 2 2 2 1 2 2 2 Hottest 156 | 60 86 156 56 112 112 91 Shots Fired 138 | 8 33 28 40 4 21 4 Gun 23 | 8 9 . . . 4 2 Cannon 81 | . 7 22 40 4 8 . Launcher 33 | . 17 5 . . 9 2 Special 1 | . . 1 . . . . Kinetic 4 | 4 . . . . . . Thermal 7 | . . 1 . . 4 2 Explosive 33 | . 17 5 . . 9 2 Electromagnetic 94 | 4 16 22 40 4 8 . Robot Hit Streak 12 | 5 3 4 12 1 5 2 Robot Miss Streak 4 | 1 3 1 2 1 4 2 Penetration Max . | . . . . . . . Secondary Targets . | . . . . . . . Shots Hit Robots 93 | 6 14 11 33 2 12 15 Core Hits 62 | 3 20 6 16 1 9 7 Critical Kills . | . . . . . . . Critical Parts Destroyed . | . . . . . . . Critical Strikes 3 | . 1 . . . . 2 Burn 1 | . . . . . . 1 Corrupt 1 | . 1 . . . . . Impale 1 | . . . . . . 1 Melee Attacks 24 | . . . . . 2 22 Impact . | . . . . . . . Slashing . | . . . . . . . Piercing 24 | . . . . . 2 22 Sneak Attacks 2 | . . . . . 1 1 Combat Hostiles . | . . . . . . . Follow-up Attacks 1 | . . . . . . 1 Damage Inflicted 3151 | 116 889 255 857 51 550 433 Guns 134 | 84 30 . . . . 20 Cannons 1184 | . 57 255 708 44 120 . Explosions 1384 | 32 802 . 149 . 384 17 Melee 442 | . . . . . 46 396 Ramming 7 | . . . . 7 . . Kinetic 26 | 26 . . . . . . Thermal 297 | 32 . . 149 . 96 20 Explosive 1107 | . 802 . . . 288 17 Electromagnetic 1272 | 58 87 255 708 44 120 . Impact . | . . . . . . . Slashing . | . . . . . . . Piercing 442 | . . . . . 46 396 Highest Corruption 3 | 3 3 3 3 3 2 2 Average Corruption 2 | 3 3 3 3 3 2 2 Corruption Purged . | . . . . . . . Corruption Blocked . | . . . . . . . Effects 34 | . 6 3 14 6 2 3 Message Errors 7 | . 3 . 2 1 . 1 Matter Fused 11 | . 1 2 2 4 1 1 Heat Flow Errors 4 | . . . 3 . . 1 Energy Discharges 4 | . . . 3 1 . . Parts Fused 1 | . . . 1 . . . Data Loss (minor) 3 | . 1 . 1 . 1 . Misfires 1 | . . 1 . . . . Alerts 2 | . 1 . 1 . . . Weapon Failures 1 | . . . 1 . . . Overload Shots . | . . . . . . . Overflow Damage 41 | . 20 . 19 . . 2 Projectiles 2 | . . . 2 . . . Explosions 37 | . 20 . 17 . . . Melee 2 | . . . . . . 2 Knockbacks . | . . . . . . . Impact . | . . . . . . . Kinetic . | . . . . . . . Secondary . | . . . . . . . Self-Inflicted Damage 188 | . 102 . 58 3 25 . Shots 9 | . 6 . 2 . 1 . Rammed 1 | . . . . 1 . . Targets Rammed 1 | . . . . 1 . . Kicked . | . . . . . . . Crushed . | . . . . . . . Highest Temperature 349 | . 96 120 349 60 104 134 Average Temperature 52 | . 22 42 78 32 36 37 Received Heat Transfer 423 | . . 66 . 15 90 252 Siege Activations . | . . . . . . . Martial Activations . | . . . . . . . Shielding Activations . | . . . . . . . Robots Disrupted . | . . . . . . . Combat Hostiles . | . . . . . . . Robots Corrupted 1 | . . . 1 . . . Combat Hostiles 1 | . . . 1 . . . Parts Fried 2 | . . . 1 . . 1 Impact Corruptions . | . . . . . . . Robots Melted . | . . . . . . . Combat Hostiles . | . . . . . . . Parts Melted . | . . . . . . . Heat Transferred 411 | . . . 150 . 150 111 Parts Sabotaged . | . . . . . . . Parts Stolen . | . . . . . . . Parts Stripped . | . . . . . . . Power Chain Reactions 5 | 1 . . 3 . 1 . Alert | -11 -10 -10 -10 -9 -8 -8 ------- Run | Yrd Mat Min Exi Min Mat Sto Maximum Alert Level 1 | . 1 . . . . . Low Security (%) 94 | 100 77 100 . 100 100 100 Level 1 5 | . 22 . . . . . Level 2 . | . . . . . . . Level 3 . | . . . . . . . Level 4 . | . . . . . . . Level 5 . | . . . . . . . High Security . | . . . . . . . Max Security . | . . . . . . . Peak Influence 310 | 10 310 127 . 84 150 120 Initial 117 | . . 117 . . 1 28 Average 75 | 2 100 109 . 30 86 64 Influence Increases 1148 | 15 443 76 15 94 258 247 Destroy 0b10 Robot/C 500 | . 180 20 . 60 140 100 Destroy 0b10 Robot/NC 95 | 15 35 25 15 . 5 . Destroy Leader 130 | . 38 10 . 10 42 30 Allied During Kill 29 | . . . . 9 20 . Successful Hack 12 | . . . . . 7 5 Disable Machine 105 | . 75 . . 15 . 15 Destroy Structure 187 | . 100 21 . . 44 22 Partial Spotted 15 | . 15 . . . . . Lose Combat Pursuer 75 | . . . . . . 75 Influence Decreases 1093 | 15 143 293 98 90 194 260 Entered New Map 309 | . . 183 83 . 3 40 Time Decay 679 | 15 143 100 10 90 161 160 Lost Part 85 | . . 10 5 . 10 60 Lost Ally 20 | . . . . . 20 . Squads Dispatched 2 | . . . . . . 2 Investigation 1 | . . . . . . 1 Extermination . | . . . . . . . Reinforcement 1 | . . . . . . 1 Assault . | . . . . . . . Garrison . | . . . . . . . Intercept . | . . . . . . . Searches Triggered . | . . . . . . . Construction Impeded . | . . . . . . . Haulers Reinforced . | . . . . . . . Active Scanning Responses . | . . . . . . . Cargo Convoy Interrupts . | . . . . . . . Stealth | -11 -10 -10 -10 -9 -8 -8 --------- Run | Yrd Mat Min Exi Min Mat Sto Distress Signals 4 | . 2 . . . . 2 Communications Jammed . | . . . . . . . Distress Signals . | . . . . . . . Times Spotted 51 | . 12 3 . 3 17 16 Peak Tracking Total 9 | . 3 3 . 3 4 9 Tactical Retreats 3 | . . . . . . 3 Traps | -11 -10 -10 -10 -9 -8 -8 ------- Run | Yrd Mat Min Exi Min Mat Sto Traps Triggered . | . . . . . . . Indirectly . | . . . . . . . Trap Hack Attempts . | . . . . . . . Triggered . | . . . . . . . Disarmed . | . . . . . . . Reprogrammed . | . . . . . . . Reused . | . . . . . . . Traps Extracted . | . . . . . . . Installed . | . . . . . . . Triggered . | . . . . . . . Machines | -11 -10 -10 -10 -9 -8 -8 ---------- Run | Yrd Mat Min Exi Min Mat Sto Machines Disabled 7 | . 5 . . 1 . 1 Max in Single Turn 2 | . 2 . . . . 1 Machines Repaired . | . . . . . . . Machines Dismantled . | . . . . . . . Machines Sabotaged . | . . . . . . . Overloaded Fab Kills . | . . . . . . . Hacking | -11 -10 -10 -10 -9 -8 -8 --------- Run | Yrd Mat Min Exi Min Mat Sto Machines Accessed 9 | . 3 . . 2 2 2 Terminals 7 | . 2 . . 1 2 2 Fabricators . | . . . . . . . Repair Stations . | . . . . . . . Recycling Units 1 | . 1 . . . . . Scanalyzers . | . . . . . . . Garrison Access . | . . . . . . . Total Hacks 17 | . 6 . . 4 4 3 Successful 7 | . 1 . . 2 2 2 Failed 10 | . 5 . . 2 2 1 Catastrophic 3 | . 2 . . 1 . . Database Lockouts . | . . . . . . . Manual 1 | . 1 . . . . . Terminals 14 | . 4 . . 3 4 3 Fabricators . | . . . . . . . Repair Stations . | . . . . . . . Recycling Units 2 | . 2 . . . . . Scanalyzers . | . . . . . . . Garrison Access . | . . . . . . . Terminal Hacks 6 | . . . . 2 2 2 Prototype ID Bank 1 | . . . . . 1 . Open Door 2 | . . . . 1 . 1 Branch Access Points 1 | . . . . . 1 . Zone Layout 2 | . . . . 1 . 1 Fabricator Hacks . | . . . . . . . Repair Station Hacks . | . . . . . . . Recycling Unit Hacks 1 | . 1 . . . . . Retrieve Components 1 | . 1 . . . . . Scanalyzer . | . . . . . . . Garrison Access Hacks . | . . . . . . . Unauthorized Hacks . | . . . . . . . Terminals . | . . . . . . . Fabricators . | . . . . . . . Repair Stations . | . . . . . . . Recycling Units . | . . . . . . . Scanalyzers . | . . . . . . . Garrison Access . | . . . . . . . Data Cores Recovered 1 | . 1 . . . . . Used . | . . . . . . . Hacking Detections 4 | . 2 . . 1 . 1 Full Trace Events 1 | . 1 . . . . . Feedback Events . | . . . . . . . Feedback Blocked . | . . . . . . . Robot Schematics Acquired . | . . . . . . . Robots Built . | . . . . . . . Authchips . | . . . . . . . Time . | . . . . . . . Total Robot Build Rating . | . . . . . . . Part Schematics Acquired . | . . . . . . . Parts Built . | . . . . . . . Authchips . | . . . . . . . Time . | . . . . . . . Total Part Build Rating . | . . . . . . . Part Studies Acquired . | . . . . . . . Parts Repaired . | . . . . . . . Time . | . . . . . . . Parts Recycled . | . . . . . . . Recycled Matter . | . . . . . . . Retrieved Matter . | . . . . . . . Retrieved Components . | . . . . . . . Parts Scanalyzed . | . . . . . . . Part Schematics Acquired . | . . . . . . . Parts Damaged . | . . . . . . . Bothacking | -11 -10 -10 -10 -9 -8 -8 ------------ Run | Yrd Mat Min Exi Min Mat Sto Used RIF Installer . | . . . . . . . Robots Hacked . | . . . . . . . Non-combat . | . . . . . . . Combat . | . . . . . . . Robot Hacks Applied . | . . . . . . . Relay Couplers Released . | . . . . . . . Fabnet Peak Effective % . | . . . . . . . Robots Rewired 3 | . . . 3 . . . Allies Hacked . | . . . . . . . Hacks Repelled . | . . . . . . . Allies | -11 -10 -10 -10 -9 -8 -8 -------- Run | Yrd Mat Min Exi Min Mat Sto Total Allies 4 | . . 1 3 . . . Largest Group 3 | . . 1 3 3 2 . Highest-Rated Group 50 | . . 31 50 50 42 . Highest-Rated Ally 31 | . . 31 21 21 21 . Total Orders . | . . . . . . . Ally Attacks 20 | . . . . 7 13 . Total Damage 455 | . . . . 162 293 . Kills 6 | . . . . 4 2 . Allies Corrupted . | . . . . . . . Allies Melted . | . . . . . . . Intel | -11 -10 -10 -10 -9 -8 -8 ------- Run | Yrd Mat Min Exi Min Mat Sto Active Infowar (turns) 752 | 4 367 205 176 . . . Seismic 752 | 4 367 205 176 . . . Robot Analysis Total . | . . . . . . . Derelict Logs Recovered 2 | . . 1 . 1 . . Drone Launches . | . . . . . . . Drone Recoveries . | . . . . . . . Exploration | -11 -10 -10 -10 -9 -8 -8 ------------- Run | Yrd Mat Min Exi Min Mat Sto Turns Passed 2211 | 62 367 205 625 265 364 323 Spaces Moved 1651 | 40 297 162 484 219 308 141 Core 38 | 1 . . . . . 37 Treads . | . . . . . . . Legs . | . . . . . . . Wheels 1613 | 39 297 162 484 219 308 104 Hover . | . . . . . . . Flight . | . . . . . . . Fastest Speed 50 | 50 90 95 95 95 93 95 Average Speed 102 | 88 97 95 95 95 97 177 Slowest Speed 400 | 90 105 95 95 95 110 400 Overloaded Moves . | . . . . . . . Propulsion Burnouts . | . . . . . . . Robots Hopped . | . . . . . . . Potential Cave-ins 4 | . . 4 . . . . Cave-ins Triggered . | . . . . . . . Exploration Rate (%) 41 | 4 58 35 89 46 27 30 Regions Visited 6 Branch Regions 4 Pre-discovered Areas 1 | . . 1 . . . . Known Exits Taken 1 | . . . . . 1 . Unknown Exits Taken 5 | 1 1 1 1 1 . . Scrap Searched 2 | . . 1 . 1 . . Spaces Dug 2 | . . 1 . . 1 . Terrain Destroyed 230 | . 98 40 5 . 65 22 Melee 1 | . . . . . 1 . Projectile 1 | . . 1 . . . . AOE 228 | . 98 39 5 . 64 22 Terrain Rammed . | . . . . . . . Walls Destroyed . | . . . . . . . Machines Disabled . | . . . . . . . Actions | -11 -10 -10 -10 -9 -8 -8 --------- Run | Yrd Mat Min Exi Min Mat Sto Total 1998 | 54 343 183 609 272 349 188 Wait 98 | . . . 40 41 . 17 Move 1645 | 39 296 161 483 218 307 141 Hop . | . . . . . . . Pick Up 41 | 4 18 . 9 4 5 1 Fast Attach 14 | 7 . . . . 6 1 Attach 5 | . . . 2 . 1 2 Detach 1 | . . . . . 1 . Swap 17 | . 4 1 5 2 2 3 Drop 26 | . 8 . 7 4 6 1 Fire 107 | 4 17 21 41 2 19 3 Melee 21 | . . . . . 2 19 Ram 1 | . . . . 1 . . Kick . | . . . . . . . Crush . | . . . . . . . Escape Stasis . | . . . . . . . Rewire 22 | . . . 22 . . . Trap . | . . . . . . . Miscellaneous . | . . . . . . . Route ------- -11/Scrapyard -10/Materials (discovered 3 exits: [*Mat x2] / [*Min]) -10/Mines (discovered 4 exits: [*Mat x2] / *Exi / [*Sub]) -10/Exiles -9/Mines -8/Materials (discovered 3 exits: [*Fac] / *Sto x2) -8/Storage History --------- Turn | Location | Event 21 | -11/Scrapyard | Discovered new exit (range 16) 63 | -11/Scrapyard | Entered Materials 143 | -10/Materials | Discovered new exit (range 3) 267 | -10/Materials | Discovered new exit (range 16) 301 | -10/Materials | Build established: Mutant 386 | -10/Materials | Discovered new exit (range 13) 430 | -10/Materials | Entered Mines 437 | -10/Mines | Learned Materials stockpile data 442 | -10/Mines | Found a hidden stash of uninstalled traps 484 | -10/Mines | Discovered new exit (range 8) 549 | -10/Mines | Discovered new exit (range 9) 556 | -10/Mines | Discovered new exit (range 9) 562 | -10/Mines | Escorted by a lone wolf Derelict 582 | -10/Mines | Learned location of Storage (-8) 629 | -10/Mines | Deemed a non-threat by the Exiles lab entrance 630 | -10/Mines | Discovered new exit (range 5) 635 | -10/Mines | Entered Exiles 635 | -10/Exiles | Found Exiles lab destroyed 635 | -10/Exiles | Accompanied by 1 ally 1237 | -10/Exiles | Discovered new exit (range 14) 1260 | -10/Exiles | Entered Mines 1260 | -9/Mines | Accompanied by 3 allies 1282 | -9/Mines | Found a damaged Exp. Sensor Array with a note attached 1285 | -9/Mines | Found Prototype Device 1310 | -9/Mines | Learned Materials garrison access intel 1485 | -9/Mines | Discovered new exit (range 13) 1498 | -9/Mines | Met a Derelict who couldn't figure out how to use a Trap Extractor 1525 | -9/Mines | Entered Materials 1525 | -8/Materials | Accompanied by 2 allies 1525 | -8/Materials | Evolved 4 slots: Power x1, Propulsion x2, Utility x1 1525 | -8/Materials | Discovered new exit (range 15) 1527 | -8/Materials | Loaded intel: 1 garrison access location 1754 | -8/Materials | Identified exit to Storage 1758 | -8/Materials | Discovered new exit (range 16) 1889 | -8/Materials | Entered Storage 1906 | -8/Storage | Met 01-MTF 1982 | -8/Storage | Lost 4 parts (2p1n1w) 2076 | -8/Storage | Lost 4 parts (1p3n) 2212 | -8/Storage | Self-destructed Last Messages --------------- G-47 Trooper triggered Alarm Trap. An alarm sounds. ALERT: Alarm triggered, dispatching investigation squad. 01-MTF resets G-47 Trooper, system corruption cleaned. 01-MTF finishes hacking Sealed Heavy Doors. U-05 Engineer lays Concrete. G-47 Trooper destroyed. U-05 Engineer destroyed. G-47 Trooper suffers critical hit (Burn). G-47 Trooper destroyed. U-05 Engineer lays Concrete. ALERT: Hostiles spotted, dispatching reinforcements to Terminal S002. Sneak attack on A-02 Transporter. A-02 Transporter suffers critical hit (Impale). Destroyed Lgt. Treads. System corrupted: Heat flow error (+165). Storage Shell breached. Map ----- +----------------------------------------------------+ | | | | | | | | | | | | | | | ?????????????????????????????????????????????? | | ?????????????????????????????????????????????? | | ???????###########???????????????????????????? | | ???????# """"" #???????????????????????????? | | ???????# """"" ####????????????????????????? | | ?????### """"" """#????????????????????????? | | ?????#"" R"#????????????????????????? | | ?????#"T """#????????????????????????? | | ?????#"" ####????????????????????????? | | ?????### #???????????????????????????? | | ???????# ######??????????????????????? | | ?###########/##### ??????????????????????? | | ?##! !#???# + ??????????????????????? | | ?##! !##### #### """ ??????????????????????? | | ?##! !## #??# "[""?"????????????????????? | | ?##! !## #??# "[""="????????????????????? | | ?### ###= #??# "]""["?#??????????????????? | | ?#T [##=%*! #??# "" [? #??????????????????? | | ?###+##%==# #??# @""" #??????????????????? | | ???#[[%!=!# #??# #??????????????????? | | ?###+##!=!# #??######p###?????? #??????????? | | ?# =##%## ####### #####"""###+##?????? | | ?# ##=## g = !% ???? | | ?# ##%## g %=%[! =% ???? | | ?# !##[## !% =%! ! ???? | | ?# !##!############ ####""*"#"####?????? | | ?# ]##!#??????????###+###???? #??????????? | | ?# ! ##*#??????????? ?????? #??????????? | | ?#######+####?????? |??????#??????????? | | ??# #????"Y #????????????????? | | ??# #???#"" """"#????????????????? | | ??# #???### """"#????????????????? | | ??# #?????# """"#????????????????? | | ??# #?????# """"#????????????????? | | ??# * |#????? ????????????????????? | | ??# %#????####+###????????????????????? | | ??# #???##### ???????????????????????? | | ??#####+###### ??????????????????????? | | ?????# ??????????????????????? | | ?????# ??????????????????????? | | ?????# ??????????????????????? | | ?????# #### ??????????????????????? | | ?????# #????###### ???????????????????????? | +----------------------------------------------------+ Best States ------------- Heat Dissipation 31 Energy Generation 23 Energy Capacity 250 Matter Stores 300 Matter Capacity 300 Sight Range 16 Terrain Scan Density 10 Additional Mass Support 6 Evasion (%) 42 Core Analysis 6 Salvage Targeting 1 Item Schematics ----------------- None Robot Schematics ------------------ None Fabricated ------------ Nothing Repaired ---------- Nothing Studied --------- None Alien Tech Used ----------------- None Achievements -------------- None Challenges ------------ None Game ------ Seed CompanionClaymoresTerminator Manual? 0 Play Time 00:35:23 Cumulative 26.1 hours Start 2026.07.10 @ 18:26:29 End 2026.07.10 @ 20:31:59 Sessions 3 Manual Loads 0 Difficulty Rogue Special Mode None Game No. 35 Rogue 35 Adventurer 0 Explorer 0 Win Type - Total 0 Types 0/0/0/0/0/0/0/0/0/0 Lore% 27 Gallery% 21 Achievement% 20 Wizard Run 0 Options --------- Layout 1 ASCII 0 Keyboard 0 Movement Mouse Keybinds 0 Fullscreen 1 Font 18/SmallcapsGlow Map View 51x41 Zoom Use 0% Tactical HUD 0 Map Filters NONE Filters NONE Steam 1 RUN: 00a9299e-aa94-4a05-a04a-f79e9a5085ff